bitfinex/quotes_SOLUSD_20250721
["timestamp","ask_amount","ask_price","bid_price","bid_amount"]
[1753099422979,10.84390449,190.56,190.46,26.0]
[1753099423174,7.8772,190.56,190.47,0.69]
[1753099423471,0.27,190.61,190.47,0.69]
[1753099423472,2.69670449,190.59,190.47,0.69]
[1753099423672,0.27,190.58,190.47,0.69]
[1753099423873,2.69670449,190.57,190.47,26.69]
[1753099424175,8.3069,190.61,190.48,0.69]
[1753099424382,11.00360449,190.61,190.48,0.69]
[1753099424555,2.69670449,190.58,190.48,0.69]
[1753099425458,2.69670449,190.59,190.48,0.69]
[1753099426078,2.69670449,190.58,190.48,0.69]
[1753099426375,2.69670449,190.56,190.45,26.69]
[1753099426678,3.39670449,190.55,190.45,0.69]
[1753099426883,2.69670449,190.54,190.39,26.1916102]
[1753099427081,3.39670449,190.53,190.42,0.69]
[1753099427257,2.69670449,190.5,190.42,0.69]
[1753099427580,2.69670449,190.55,190.43,26.50194344]
[1753099427758,2.69670449,190.55,190.44,27.49843672]
[1753099427958,2.69670449,190.55,190.47,26.0]
[1753099428164,2.69670449,190.52,190.47,26.0]
[1753099428359,2.69670449,190.52,190.45,0.69]
[1753099428779,3.39670449,190.55,190.45,0.69]
[1753099429088,2.69670449,190.53,190.45,0.69]
[1753099429280,16.78468397,190.53,190.41,0.69]
[1753099429482,2.69670449,190.5,190.41,0.69]
[1753099429658,2.69670449,190.48,190.41,26.69]
[1753099429981,2.69670449,190.49,190.43,26.0]
[1753099430353,0.7,190.52,190.43,26.0]
[1753099430354,2.69670449,190.5,190.45,26.0]
[1753099430564,16.78468397,190.55,190.45,26.0]
[1753099430565,2.69670449,190.51,190.46,0.69]
[1753099430780,2.69670449,190.51,190.47,0.69]
[1753099430986,2.69670449,190.51,190.44,0.69]
[1753099431178,2.69670449,190.49,190.44,26.69]
[1753099431473,2.69670449,190.5,190.41,26.0]
[1753099431781,2.69670449,190.47,190.41,26.0]
[1753099432365,2.69670449,190.48,190.43,26.0]
[1753099432574,2.69670449,190.48,190.44,0.69]
[1753099432883,2.69670449,190.51,190.45,0.69]
[1753099433479,2.69670449,190.48,190.45,0.69]
[1753099433681,2.69670449,190.5,190.42,0.69]
[1753099433980,2.69670449,190.48,190.42,0.69]
[1753099434186,2.69670449,190.47,190.4,26.03]
[1753099435458,2.69670449,190.45,190.4,26.03]
[1753099435666,2.69670449,190.46,190.41,0.69]
[1753099435865,2.69670449,190.49,190.42,0.69]
[1753099436201,2.69670449,190.47,190.42,0.69]
[1753099436493,2.69670449,190.47,190.43,0.69]
[1753099436657,2.69670449,190.48,190.43,0.69]
[1753099436862,2.69670449,190.47,190.43,0.69]
[1753099437086,2.69670449,190.49,190.43,26.0]
[1753099437406,2.69670449,190.51,190.44,0.69]
[1753099438772,2.69670449,190.49,190.44,0.69]
[1753099438970,2.69670449,190.48,190.44,0.69]
[1753099439369,2.69670449,190.5,190.44,0.69]
[1753099439570,2.69670449,190.5,190.42,26.0]
[1753099439571,2.69670449,190.48,190.42,26.0]
[1753099439769,0.7,190.48,190.4,0.03]
[1753099439962,2.69670449,190.44,190.4,0.03]
[1753099440366,26.50305534,190.75,190.4,0.03]
[1753099440367,2.69670449,190.42,190.4,0.03]
[1753099440663,2.69670449,190.41,190.4,0.03]
[1753099440882,3.39670449,190.41,190.4,0.03]
[1753099441395,2.69670449,190.35,190.32,0.03]
[1753099441686,2.69670449,190.38,190.33,0.72]
[1753099441892,2.69670449,190.39,190.34,0.72]
[1753099442094,23.40720449,190.43,190.36,26.0]
[1753099442268,8.1669,190.43,190.37,26.72]
[1753099442589,2.69670449,190.46,190.37,26.72]
[1753099442590,2.69670449,190.46,190.38,0.72]
[1753099442775,2.69670449,190.41,190.33,0.72]
[1753099443090,2.69670449,190.38,190.32,0.03]
[1753099443281,2.69670449,190.36,190.32,0.03]
[1753099443588,2.69670449,190.37,190.33,0.72]
[1753099443778,2.69670449,190.37,190.34,0.72]
[1753099444175,2.69670449,190.37,190.32,0.03]
[1753099444488,2.69670449,190.37,190.33,0.72]
[1753099444668,2.69670449,190.4,190.34,0.72]
[1753099445070,0.7,190.44,190.32,0.03]
[1753099445071,2.69670449,190.37,190.32,0.03]
[1753099445474,2.69670449,190.36,190.32,0.75]
[1753099445892,2.69670449,190.36,190.32,0.03]
[1753099446399,2.69670449,190.33,190.32,0.03]
[1753099446578,2.69670449,190.33,190.24,2.62634342]
[1753099446773,2.69670449,190.28,190.2,3.42606084]
[1753099446978,2.69670449,190.27,190.2,3.42606084]
[1753099447281,2.69670449,190.28,190.21,0.72]
[1753099447674,2.69670449,190.3,190.21,0.72]
[1753099447874,2.69670449,190.3,190.24,26.0]
[1753099448075,2.69670449,190.33,190.25,0.72]
[1753099448304,2.58615105,190.34,190.26,26.0]
[1753099448511,2.56404037,190.34,190.27,0.72]
[1753099448676,10.17654037,190.37,190.28,26.0]
[1753099449004,2.56404037,190.39,190.29,0.72]
[1753099449210,15.82384037,190.4,190.29,0.72]
[1753099449720,2.56404037,190.37,190.29,0.72]
[1753099450213,2.56404037,190.36,190.24,0.03]
[1753099450511,2.56404037,190.35,190.28,26.0]
[1753099450716,2.56404037,190.37,190.29,0.72]
[1753099450878,2.56404037,190.35,190.29,0.72]
[1753099451076,13.2598,190.4,190.29,0.72]
[1753099451077,2.56404037,190.37,190.29,0.72]
[1753099451378,13.2598,190.4,190.29,0.72]
[1753099451379,2.56404037,190.39,190.29,0.72]
[1753099451574,15.82384037,190.4,190.3,16.78468397]
[1753099451875,2.62404037,190.41,190.33,26.0]
[1753099452075,2.56404037,190.4,190.33,26.0]
[1753099452495,2.56404037,190.38,190.33,26.0]
[1753099452708,2.56404037,190.37,190.33,0.72]
[1753099452911,2.56404037,190.37,190.34,0.72]
[1753099453203,0.06,190.41,190.34,0.72]
[1753099453406,0.06,190.41,190.37,26.0]
[1753099453587,0.06,190.41,190.37,26.72]
[1753099453788,0.06,190.41,190.38,26.72]
[1753099453991,0.06,190.49,190.39,26.1916102]
[1753099454208,0.06,190.49,190.4,0.72]
[1753099454881,0.67,190.48,190.38,26.0]
[1753099455081,0.67,190.48,190.35,26.0]
[1753099455282,16.78468397,190.47,190.35,26.0]
[1753099455506,0.67,190.46,190.31,26.72]
[1753099455808,16.78468397,190.44,190.31,0.72]
[1753099456005,0.67,190.43,190.31,26.72]
[1753099456182,0.67,190.43,190.26,5.232]
[1753099456183,16.78468397,190.42,190.22,13.0336]
[1753099456383,16.78468397,190.4,190.25,0.72]
[1753099456594,16.78468397,190.4,190.26,26.0]
[1753099456790,16.78468397,190.4,190.27,26.72]
[1753099456791,0.67,190.39,190.27,26.72]
[1753099457197,0.67,190.39,190.27,0.72]
[1753099457490,16.78468397,190.38,190.27,26.72]
[1753099457680,0.67,190.39,190.27,26.72]
[1753099457883,0.67,190.37,190.27,0.72]
[1753099458403,20.9421,190.41,190.31,26.0]
[1753099458694,20.2721,190.41,190.33,26.0]
[1753099458896,20.2721,190.41,190.34,0.72]
[1753099459287,20.9421,190.41,190.31,26.0]
[1753099459582,0.67,190.4,190.31,26.0]
[1753099459805,0.67,190.4,190.31,26.72]
[1753099459981,20.2721,190.41,190.32,26.0]
[1753099460180,0.67,190.4,190.27,7.47489381]
[1753099460397,0.67,190.4,190.27,0.72]
[1753099460717,0.67,190.4,190.28,0.72]
[1753099460886,0.67,190.4,190.28,26.72]
[1753099461086,0.67,190.4,190.3,26.0]
[1753099461797,0.67,190.4,190.29,0.72]
[1753099462107,16.78468397,190.39,190.28,26.0]
[1753099462297,0.67,190.38,190.28,26.0]
[1753099462484,0.67,190.38,190.27,26.0]
[1753099463296,0.67,190.38,190.28,0.72]
[1753099463710,0.67,190.38,190.27,26.0]
[1753099464213,0.67,190.38,190.27,26.72]
[1753099465813,0.67,190.38,190.28,0.72]
[1753099466105,0.67,190.38,190.28,26.72]
[1753099466611,0.67,190.38,190.28,0.72]
[1753099466802,17.45468397,190.4,190.29,0.72]
[1753099466998,16.78468397,190.4,190.29,0.72]
[1753099467201,20.2721,190.41,190.29,26.72]
[1753099467391,8.0341,190.41,190.3,0.72]
[1753099467592,12.0591,190.45,190.34,26.0]
[1753099467796,8.2303,190.46,190.35,0.72]
[1753099468008,0.06,190.49,190.39,26.0]
[1753099468213,0.06,190.49,190.41,26.0]
[1753099468596,12.0591,190.55,190.41,26.0]
[1753099468597,12.0591,190.55,190.42,0.72]
[1753099468910,12.0591,190.55,190.43,42.78468397]
[1753099469298,12.0591,190.55,190.44,0.72]
[1753099470195,16.78468397,190.54,190.44,0.72]
[1753099470602,17.45468397,190.54,190.44,0.72]
[1753099470788,0.67,190.53,190.44,0.72]
[1753099471711,12.0591,190.55,190.44,0.72]
[1753099474010,12.1191,190.55,190.44,0.72]
[1753099476102,0.67,190.54,190.34,4.7848]
[1753099476423,16.78468397,190.53,190.39,0.69]
[1753099476594,0.67,190.52,190.39,0.69]
[1753099478397,89.8,190.54,190.43,26.0]
[1753099478602,12.7891,190.55,190.44,0.69]
[1753099479818,12.1191,190.55,190.44,0.69]
[1753099480618,12.7891,190.55,190.44,0.69]
[1753099481019,12.1191,190.55,190.44,26.69]
[1753099481220,12.1191,190.55,190.45,0.69]
[1753099481627,0.06,190.55,190.49,26.0]
[1753099481802,0.06,190.55,190.5,0.69]
[1753099481998,0.06,190.55,190.49,26.0]
[1753099483125,0.06,190.55,190.49,26.69]
[1753099483429,0.06,190.55,190.5,0.69]
[1753099483840,0.06,190.55,190.51,0.69]
[1753099484042,0.06,190.55,190.52,0.69]
[1753099484220,0.06,190.55,190.49,26.0]
[1753099484417,0.06,190.55,190.49,26.69]
[1753099484808,0.06,190.55,190.5,0.69]
[1753099485036,0.06,190.59,190.55,26.0]
[1753099485234,0.06,190.63,190.56,0.69]
[1753099485446,0.06,190.63,190.56,3.33321057]
[1753099485602,0.06,190.63,190.57,0.69]
[1753099485808,0.06,190.63,190.55,26.0]
[1753099486519,0.06,190.63,190.56,0.69]
[1753099487044,0.06,190.63,190.59,26.0]
[1753099487330,0.73,190.63,190.59,26.0]
[1753099487502,0.06,190.63,190.59,26.0]
[1753099487705,0.06,190.63,190.59,26.69]
[1753099487905,0.06,190.63,190.6,0.69]
[1753099488106,19.8965,190.67,190.61,0.69]
[1753099488508,7.8391,190.67,190.61,0.69]
[1753099488707,0.1,190.69,190.61,0.69]
[1753099488708,0.1,190.69,190.61,26.69]
[1753099488909,0.1,190.69,190.62,0.69]
[1753099489110,20.773,190.72,190.62,0.69]
[1753099489342,20.773,190.77,190.62,0.69]
[1753099489639,20.773,190.77,190.66,26.0]
[1753099489817,20.773,190.77,190.67,0.69]
[1753099490143,0.06,190.82,190.71,26.0]
[1753099490144,21.4668,190.82,190.71,26.0]
[1753099490510,21.4668,190.82,190.72,0.69]
[1753099490717,0.06,190.82,190.76,26.0]
[1753099490916,0.06,190.82,190.77,0.69]
[1753099491128,0.06,190.82,190.78,0.69]
[1753099491617,0.06,190.82,190.79,0.69]
[1753099491819,0.06,190.82,190.76,26.0]
[1753099492220,0.06,190.82,190.73,26.69]
[1753099492529,0.73,190.82,190.67,26.69]
[1753099492733,16.78468397,190.81,190.67,0.69]
[1753099493030,16.78468397,190.79,190.63,0.69]
[1753099493248,0.67,190.78,190.63,0.69]
[1753099493411,0.67,190.78,190.64,26.0]
[1753099493608,0.67,190.78,190.65,0.69]
[1753099494206,16.78468397,190.77,190.65,0.69]
[1753099494416,0.67,190.76,190.65,0.69]
[1753099494724,0.67,190.76,190.64,26.0]
[1753099494923,20.9549,190.8,190.65,0.69]
[1753099495106,21.6249,190.8,190.65,0.69]
[1753099495308,0.67,190.79,190.65,0.69]
[1753099496436,20.9549,190.8,190.69,26.0]
[1753099496832,20.9549,190.8,190.7,0.69]
[1753099497138,21.6249,190.8,190.7,0.69]
[1753099498117,20.9549,190.8,190.7,0.69]
[1753099498318,0.67,190.79,190.7,0.69]
[1753099498728,0.67,190.79,190.67,0.69]
[1753099498943,16.78468397,190.78,190.63,0.69]
[1753099499238,0.67,190.77,190.63,0.69]
[1753099499836,16.78468397,190.76,190.63,0.69]
[1753099500035,0.67,190.75,190.63,0.69]
[1753099500235,16.78468397,190.74,190.59,0.72]
[1753099500421,16.78468397,190.72,190.59,0.03]
[1753099500825,0.67,190.71,190.59,26.72]
[1753099501023,16.78468397,190.7,190.59,0.03]
[1753099501219,16.78468397,190.68,190.59,0.03]
[1753099501625,21.3914,190.67,190.59,0.03]
[1753099501830,16.78468397,190.66,190.59,0.03]
[1753099502017,21.3914,190.67,190.59,0.03]
[1753099502218,16.78468397,190.64,190.59,0.03]
[1753099502732,0.67,190.63,190.59,0.03]
[1753099503250,0.67,190.62,190.59,0.03]
[1753099503620,0.67,190.61,190.59,0.03]
[1753099503941,0.67,190.64,190.59,0.03]
[1753099504316,21.3914,190.67,190.59,0.03]
[1753099504638,17.45468397,190.66,190.59,0.03]
[1753099505019,0.67,190.65,190.59,0.03]
[1753099507744,20.7214,190.67,190.59,0.03]
[1753099509843,20.7214,190.67,190.6,0.69]
[1753099510842,7.9121,190.73,190.64,26.0]
[1753099511047,0.67,190.76,190.65,0.69]
[1753099512652,20.9881,190.78,190.65,26.69]
[1753099512822,20.9881,190.78,190.66,0.69]
[1753099513141,21.6581,190.78,190.66,0.69]
[1753099513350,20.9881,190.78,190.66,0.69]
[1753099513542,16.78468397,190.76,190.59,0.03]
[1753099513742,20.9881,190.75,190.59,0.03]
[1753099514045,16.78468397,190.73,190.59,0.03]
[1753099514421,16.78468397,190.71,190.59,0.03]
[1753099514836,16.78468397,190.73,190.59,0.03]
[1753099515037,16.78468397,190.69,190.59,0.03]
[1753099515441,0.67,190.68,190.59,0.03]
[1753099515733,16.78468397,190.65,190.59,0.03]
[1753099516039,16.78468397,190.63,190.59,0.03]
[1753099516241,0.67,190.64,190.59,0.03]
[1753099516438,0.67,190.64,190.55,0.03]
[1753099516439,16.78468397,190.63,190.55,0.03]
[1753099516640,16.78468397,190.61,190.55,0.03]
[1753099516838,16.78468397,190.59,190.51,0.03]
[1753099517355,16.78468397,190.57,190.51,0.03]
[1753099517535,16.78468397,190.57,190.55,0.03]
[1753099517736,0.61,190.56,190.55,0.03]
[1753099517934,17.39468397,190.56,190.55,0.03]
[1753099519628,0.61,190.56,190.55,0.03]
[1753099519827,0.61,190.59,190.55,0.03]
[1753099520044,20.5946,190.6,190.55,0.03]
[1753099520634,0.61,190.59,190.55,0.03]
[1753099521045,16.78468397,190.57,190.55,0.03]
[1753099521245,0.61,190.58,190.55,0.03]
[1753099521447,20.5946,190.6,190.55,0.03]
[1753099521847,0.61,190.64,190.56,0.69]
[1753099523373,0.61,190.64,190.55,0.03]
[1753099524450,20.3916,190.65,190.56,0.69]
[1753099525343,10.0,190.6,190.56,0.69]
[1753099525734,10.0,190.6,190.57,0.69]
[1753099525935,10.0,190.6,190.58,0.69]
[1753099526149,10.0,190.6,190.56,0.69]
[1753099526343,10.0,190.6,190.57,0.69]
[1753099526652,0.61,190.67,190.55,2.68537591]
[1753099526653,0.06,190.69,190.58,0.69]
[1753099528438,0.61,190.68,190.58,0.69]
[1753099529038,16.78468397,190.67,190.55,2.68537591]
[1753099529238,0.61,190.66,190.59,26.0]
[1753099529445,0.61,190.66,190.55,2.68537591]
[1753099529642,16.78468397,190.65,190.55,0.03]
[1753099529846,0.61,190.66,190.55,0.03]
[1753099529847,16.78468397,190.62,190.55,0.03]
[1753099530054,0.61,190.61,190.55,0.03]
[1753099530246,16.78468397,190.6,190.55,0.03]
[1753099530462,16.78468397,190.58,190.55,0.03]
[1753099530769,16.78468397,190.58,190.51,0.03]
[1753099530959,16.78468397,190.56,190.51,0.03]
[1753099531257,12.6631,190.63,190.51,0.03]
[1753099531562,17.36468397,190.62,190.51,0.03]
[1753099531762,17.36468397,190.62,190.51,0.73]
[1753099532070,17.36468397,190.62,190.51,0.03]
[1753099532071,0.58,190.61,190.51,0.03]
[1753099534340,0.58,190.61,190.52,0.7]
[1753099534564,12.6631,190.63,190.52,0.7]
[1753099535367,12.6631,190.63,190.53,26.0]
[1753099535871,0.58,190.62,190.53,26.0]
[1753099536240,0.58,190.62,190.52,0.7]
[1753099536755,12.6631,190.63,190.52,0.7]
[1753099538463,13.2431,190.63,190.52,0.7]
[1753099538965,12.6631,190.63,190.52,0.7]
[1753099539163,8.3095,190.64,190.52,0.7]
[1753099539164,8.3095,190.64,190.53,26.0]
[1753099539354,8.3095,190.64,190.54,0.7]
[1753099540244,0.58,190.67,190.54,26.7]
[1753099540565,0.06,190.67,190.56,26.0]
[1753099540764,0.06,190.67,190.57,0.7]
[1753099541148,0.58,190.66,190.53,0.7]
[1753099541567,0.58,190.66,190.54,26.0]
[1753099541745,0.58,190.66,190.55,0.7]
[1753099543082,16.78468397,190.65,190.52,0.7]
[1753099543249,0.58,190.64,190.51,0.03]
[1753099543646,24.93168397,190.63,190.51,0.03]
[1753099543854,16.78468397,190.61,190.51,0.03]
[1753099544252,0.58,190.61,190.51,0.03]
[1753099544450,0.58,190.61,190.51,0.73]
[1753099545173,8.147,190.63,190.51,0.73]
[1753099545554,0.58,190.62,190.51,0.73]
[1753099546179,0.58,190.62,190.51,26.73]
[1753099547584,0.58,190.62,190.51,0.73]
[1753099549482,0.58,190.62,190.52,26.0]
[1753099550445,16.78468397,190.61,190.51,0.03]
[1753099550650,0.58,190.6,190.51,0.03]
[1753099551073,16.78468397,190.59,190.51,0.03]
[1753099551883,0.58,190.58,190.51,0.03]
[1753099553692,29.53098397,190.61,190.51,0.03]
[1753099553860,0.58,190.6,190.51,0.03]
[1753099554193,16.78468397,190.59,190.51,0.03]
[1753099554477,16.78468397,190.57,190.51,0.03]
[1753099554854,16.78468397,190.55,190.51,0.03]
[1753099555278,0.58,190.54,190.51,0.03]
[1753099555670,0.58,190.53,190.51,0.03]
[1753099556183,16.78468397,190.55,190.51,0.03]
[1753099556366,0.58,190.52,190.51,0.03]
[1753099556883,16.78468397,190.55,190.51,0.03]
[1753099556884,17.36468397,190.55,190.51,0.03]
[1753099557076,0.58,190.54,190.51,0.03]
[1753099557464,0.58,190.53,190.51,0.03]
[1753099559591,0.58,190.52,190.51,0.03]
[1753099560283,30.20128397,190.52,190.47,0.03]
[1753099560463,7.5493,190.5,190.36,0.7]
[1753099560881,0.52,190.49,190.36,4.67371961]
[1753099561065,7.5493,190.5,190.39,26.0]
[1753099561262,7.5493,190.55,190.43,26.0]
[1753099561479,16.78468397,190.54,190.44,0.68]
[1753099561782,16.78468397,190.52,190.37,0.68]
[1753099561982,16.78468397,190.5,190.37,19.06524976]
[1753099562186,16.78468397,190.5,190.47,0.03]
[1753099562364,0.52,190.52,190.47,0.03]
[1753099562563,12.8366,190.53,190.47,0.03]
[1753099562765,12.8366,190.53,190.47,0.71]
[1753099562983,8.1709,190.61,190.48,70.62410751]
[1753099563179,0.52,190.6,190.48,70.62410751]
[1753099563684,0.52,190.6,190.51,0.03]
[1753099564185,16.78468397,190.59,190.51,0.03]
[1753099564984,0.52,190.6,190.54,26.0]
[1753099565486,16.78468397,190.6,190.54,26.0]
[1753099565780,7.6509,190.61,190.54,26.0]
[1753099566183,7.6509,190.61,190.54,26.68]
[1753099566390,0.52,190.63,190.54,26.68]
[1753099566566,13.0689,190.65,190.55,0.68]
[1753099566888,17.30468397,190.64,190.55,0.68]
[1753099567058,17.30468397,190.64,190.59,26.0]
[1753099567263,0.52,190.63,190.59,26.0]
[1753099567578,13.0689,190.65,190.59,26.0]
[1753099568281,0.06,190.66,190.59,26.68]
[1753099568587,0.06,190.67,190.6,0.68]
[1753099568786,1e-08,190.69,190.6,0.68]
[1753099568961,1e-08,190.7,190.64,26.0]
[1753099569168,1e-08,190.7,190.65,0.68]
[1753099570675,1e-08,190.75,190.65,26.68]
[1753099570892,1e-08,190.75,190.66,0.68]
[1753099571188,1e-08,190.75,190.7,26.0]
[1753099571566,1e-08,190.75,190.71,0.68]
[1753099572188,1e-08,190.75,190.72,0.68]
[1753099572572,1e-08,190.75,190.74,26.0]
[1753099574090,0.52000001,190.75,190.74,26.0]
[1753099574394,0.52000001,190.75,190.71,31.24356352]
[1753099574687,16.78468397,190.74,190.65,13.11288117]
[1753099574888,16.78468397,190.72,190.65,13.11288117]
[1753099575066,0.52,190.71,190.65,13.11288117]
[1753099575686,12.8799,190.73,190.68,26.0]
[1753099576687,12.8799,190.73,190.69,18.35439718]
[1753099576890,1e-08,190.75,190.69,18.35439718]
[1753099577090,1e-08,190.75,190.72,26.0]
[1753099578301,1e-08,190.75,190.72,26.68]
[1753099578681,1e-08,190.75,190.73,5.24301368]
[1753099579970,1e-08,190.75,190.73,5.92301368]
[1753099580371,1e-08,190.75,190.74,0.68]
[1753099580881,1e-08,190.75,190.74,31.2427388]
[1753099582289,1e-08,190.75,190.74,31.9227388]
[1753099584087,1e-08,190.75,190.74,31.2427388]
[1753099584302,0.06,190.79,190.74,31.9227388]
[1753099584303,1e-08,190.79,190.74,31.9227388]
[1753099584477,7.8483,190.86,190.75,0.68]
[1753099584478,1e-08,190.82,190.75,0.68]
[1753099585485,0.06,190.86,190.75,0.68]
[1753099585886,0.06,190.86,190.79,26.0]
[1753099586289,0.06,190.86,190.8,0.68]
[1753099587113,0.1,190.87,190.8,0.68]
[1753099587984,0.1,190.87,190.84,26.0]
[1753099588390,1e-08,190.87,190.85,0.68]
[1753099588610,12.5205,190.93,190.86,0.68]
[1753099589287,0.1,190.93,190.86,0.68]
[1753099589997,0.1,190.93,190.9,26.0]
[1753099590313,0.62,190.93,190.9,26.0]
[1753099590805,0.1,190.93,190.9,26.68]
[1753099591193,0.1,190.93,190.91,0.68]
[1753099591818,1e-08,190.94,190.92,0.71]
[1753099592115,1e-08,190.94,190.93,5.2375216]
[1753099592335,0.1,190.97,190.93,5.2375216]
[1753099592336,1e-08,190.97,190.96,26.0]
[1753099592916,1e-08,190.97,190.96,26.71]
[1753099593497,13.2632,191.03,190.96,26.71]
[1753099593498,0.06,191.03,190.96,26.71]
[1753099593704,0.06,191.07,190.97,0.71]
[1753099594021,0.06,191.07,191.01,26.0]
[1753099594236,7.9445,191.1,191.02,0.71]
[1753099594520,12.9672,191.14,191.05,26.0]
[1753099594716,12.9672,191.14,191.05,26.71]
[1753099594915,0.52,191.13,191.05,26.0]
[1753099595205,16.78468397,191.12,191.01,26.0]
[1753099595388,0.52,191.13,191.04,0.71]
[1753099595587,16.78468397,191.12,191.04,0.71]
[1753099596002,12.9672,191.14,191.06,26.0]
[1753099597000,0.52,191.13,191.05,5.23423187]
[1753099597210,16.78468397,191.12,191.02,5.23505392]
[1753099597393,16.78468397,191.1,191.02,5.23505392]
[1753099597589,16.78468397,191.08,191.05,26.0]
[1753099597998,16.78468397,191.1,191.07,26.0]
[1753099598205,16.78468397,191.08,191.01,31.23532799]
[1753099598805,16.78468397,191.06,191.01,5.23532799]
[1753099599011,0.52,191.06,191.01,5.23532799]
[1753099599192,16.78468397,191.09,191.01,5.23532799]
[1753099599386,16.78468397,191.04,191.01,5.23532799]
[1753099599919,0.52,191.04,191.01,26.0]
[1753099600122,16.78468397,191.06,191.01,26.0]
[1753099600502,16.78468397,191.09,191.02,0.71]
[1753099600705,16.78468397,191.09,191.01,26.0]
[1753099601013,16.78468397,191.05,191.01,26.0]
[1753099601220,8.2928,191.06,190.98,13.0902868]
[1753099601412,16.78468397,191.05,191.01,26.0]
[1753099601719,16.78468397,191.05,191.04,26.0]
[1753099603612,0.52,191.11,191.02,5.23505392]
[1753099603613,16.78468397,191.1,191.05,26.0]
[1753099603920,16.78468397,191.1,191.06,5.23395791]
[1753099604122,16.78468397,191.1,191.06,5.94395791]
[1753099604428,16.78468397,191.13,191.07,0.71]
[1753099604719,16.78468397,191.11,191.06,5.23395791]
[1753099604924,0.52,191.1,191.06,5.23395791]
[1753099605223,16.78468397,191.12,191.06,5.23395791]
[1753099605913,16.78468397,191.13,191.06,5.23395791]
[1753099606112,16.78468397,191.1,191.06,5.23395791]
[1753099606308,16.78468397,191.08,191.05,5.23419007]
[1753099606629,16.78468397,191.12,191.05,5.23419007]
[1753099606802,16.78468397,191.13,191.05,5.23419007]
[1753099607001,0.52,191.12,191.05,5.23419007]
[1753099607622,16.78468397,191.13,191.06,26.0]
[1753099607923,0.06,191.14,191.11,26.0]
[1753099608099,1e-08,191.14,191.12,0.71]
[1753099608705,0.52,191.24,191.12,0.71]
[1753099608706,21.0848,191.28,191.12,0.71]
[1753099609207,21.0848,191.28,191.15,26.0]
[1753099609422,21.0848,191.28,191.16,0.71]
[1753099609625,21.0848,191.28,191.15,26.0]
[1753099609626,0.52,191.27,191.15,26.0]
[1753099609803,5.22848478,191.26,191.16,26.0]
[1753099609999,16.78468397,191.25,191.13,5.23204101]
[1753099610207,16.78468397,191.25,191.13,18.31214355]
[1753099610409,15.71,191.25,191.16,26.0]
[1753099610711,16.78468397,191.26,191.16,26.0]
[1753099610910,16.78468397,191.22,191.13,5.23204101]
[1753099611111,16.78468397,191.2,191.13,5.23204101]
[1753099611719,17.19468397,191.2,191.13,5.23204101]
[1753099611925,17.19468397,191.2,191.1,18.31496726]
[1753099612230,17.19468397,191.2,191.11,26.0]